bitfinex-derivatives/quotes_SOLF0:USTF0_20260305
["timestamp","ask_amount","ask_price","bid_price","bid_amount"]
[1772711848340,3.9584421,91.815,91.769,2.0425173]
[1772711850236,3.9584421,91.815,91.759,9.807]
[1772711851540,8.9527167,91.84,91.759,9.807]
[1772711851541,3.9584421,91.813,91.759,9.807]
[1772711854238,3.9584421,91.813,91.754,2.035476]
[1772711854239,3.9584421,91.813,91.766,9.807]
[1772711855941,3.9584421,91.813,91.774,9.806]
[1772711856639,3.9584421,91.813,91.754,2.035476]
[1772711857245,3.9584421,91.81,91.762,9.807]
[1772711858243,3.9584421,91.808,91.762,9.807]
[1772711859245,3.9584421,91.808,91.754,2.035476]
[1772711860146,3.9584421,91.808,91.77,9.806]
[1772711860441,3.9584421,91.808,91.754,2.035476]
[1772711862845,3.9584421,91.808,91.756,1.97183847]
[1772711864347,3.9584421,91.8,91.741,1.97183847]
[1772711865649,9.803,91.797,91.744,1.96594988]
[1772711866153,9.803,91.797,91.753,9.808]
[1772711866452,3.9584421,91.8,91.753,9.808]
[1772711866453,8.13625687,91.8,91.753,9.808]
[1772711869049,8.13625687,91.8,91.759,9.807]
[1772711870845,8.13625687,91.8,91.766,9.807]
[1772711872550,8.13646692,91.8,91.766,9.807]
[1772711872852,7.90204842,91.81,91.772,9.806]
[1772711873052,3.7240236,91.809,91.772,9.806]
[1772711873750,3.7240236,91.809,91.778,9.805]
[1772711876456,3.7240236,91.809,91.766,9.806]
[1772711876653,9.14968028,91.819,91.766,2.03962222]
[1772711876857,4.17802482,91.82,91.767,2.03962222]
[1772711878758,4.17802482,91.81,91.751,2.03962222]
[1772711878951,9.802,91.808,91.751,2.03962222]
[1772711879348,9.802,91.808,91.693,19.629]
[1772711879349,3.7240236,91.81,91.761,2.04397502]
[1772711879554,4.17802482,91.82,91.761,2.04397502]
[1772711880757,7.90204842,91.82,91.761,2.04397502]
[1772711881358,9.801,91.817,91.761,2.04397502]
[1772711881762,3.7240236,91.82,91.771,2.03338232]
[1772711882260,9.801,91.818,91.771,2.03338232]
[1772711882456,7.90204842,91.82,91.771,2.03338232]
[1772711882659,4.17802482,91.81,91.771,2.03338232]
[1772711882870,7.90204842,91.81,91.771,2.03338232]
[1772711883162,3.7240236,91.81,91.771,2.03338232]
[1772711886860,4.17802482,91.81,91.771,2.03338232]
[1772711887666,3.7240236,91.819,91.771,2.03338232]
[1772711888367,3.7240236,91.845,91.791,2.07378887]
[1772711888867,3.7240236,91.845,91.801,2.07378887]
[1772711891864,3.7240236,91.842,91.801,2.07378887]
[1772711892065,152.305,91.916,91.79,4.17802482]
[1772711892066,3.7240236,91.839,91.79,4.17802482]
[1772711892269,3.7240236,91.839,91.791,2.09866666]
[1772711893360,3.7240236,91.839,91.797,9.803]
[1772711894771,3.7240236,91.829,91.79,9.804]
[1772711894965,4.17802482,91.82,91.79,9.804]
[1772711895364,4.17802482,91.81,91.782,9.805]
[1772711896471,4.17802482,91.82,91.788,9.804]
[1772711897270,3.7240236,91.829,91.788,9.804]
[1772711897967,3.7240236,91.829,91.78,9.805]
[1772711897968,4.17802482,91.82,91.78,9.805]
[1772711898168,3.7240236,91.809,91.761,2.0951427]
[1772711899473,3.7240236,91.809,91.772,9.806]
[1772711902772,4.17802482,91.8,91.772,9.806]
[1772711902968,3.7240236,91.809,91.772,9.806]
[1772711905274,4.17802482,91.81,91.779,9.805]
[1772711905876,4.17802482,91.81,91.773,2.08443643]
[1772711907277,4.17802482,91.81,91.774,9.806]
[1772711909174,3.81657777,91.834,91.781,2.10130264]
[1772711909680,3.81657777,91.834,91.795,2.10130264]
[1772711910570,3.81657777,91.834,91.795,11.90430264]
[1772711913181,4.17802482,91.84,91.8,9.803]
[1772711914177,7.99460259,91.84,91.8,9.803]
[1772711914674,3.81657777,91.839,91.8,9.803]
[1772711914873,3.81657777,91.838,91.8,9.803]
[1772711915079,4.17802482,91.81,91.775,2.04127424]
[1772711916682,3.81657777,91.809,91.77,9.806]
[1772711918985,3.81657777,91.809,91.762,2.04398915]
[1772711923695,4.17802482,91.8,91.762,2.04398915]
[1772711924796,3.81657777,91.809,91.762,2.04398915]
[1772711924992,9.801,91.819,91.762,2.04398915]
[1772711924993,4.17802482,91.82,91.762,2.04398915]
[1772711925197,7.99460259,91.82,91.762,2.04398915]
[1772711925603,9.8,91.827,91.771,2.02848915]
[1772711928296,9.8,91.827,91.772,2.09140502]
[1772711928697,3.81657777,91.829,91.781,2.084552]
[1772711930605,3.85526632,91.827,91.781,2.084552]
[1772711930799,13.42025925,91.87,91.777,9.805]
[1772711930800,3.85526632,91.819,91.777,9.805]
[1772711938913,3.85526632,91.809,91.77,9.806]
[1772711939403,3.85526632,91.809,91.769,2.0722075]
[1772711940617,3.85526632,91.807,91.769,2.0722075]
[1772711941010,3.85526632,91.819,91.769,2.0722075]
[1772711942517,3.85526632,91.819,91.777,9.805]
[1772711944312,3.85526632,91.815,91.771,2.07035569]
[1772711945916,3.85526632,91.815,91.773,9.806]
[1772711946315,3.85526632,91.815,91.773,11.8699161]
[1772711946617,3.85526632,91.815,91.774,2.0639161]
[1772711947317,9.801,91.823,91.781,2.0639161]
[1772711947506,3.85526632,91.82,91.781,2.0639161]
[1772711947707,3.85526632,91.819,91.781,2.0639161]
[1772711947915,3.85526632,91.819,91.761,2.0639161]
[1772711948420,3.85526632,91.819,91.773,9.806]
[1772711948613,3.85526632,91.819,91.773,11.86365446]
[1772711948810,4.17602429,91.83,91.781,2.05765446]
[1772711949014,3.85526632,91.831,91.781,2.05765446]
[1772711949511,3.85526632,91.829,91.782,9.805]
[1772711950820,3.85526632,91.828,91.783,2.05242722]
[1772711951010,3.85526632,91.819,91.782,9.805]
[1772711951210,3.85526632,91.809,91.77,2.05242722]
[1772711951620,3.85526632,91.809,91.771,2.05242722]
[1772711951819,3.85526632,91.809,91.772,2.05242722]
[1772711957123,3.85526632,91.809,91.773,9.806]
[1772711958322,3.85526632,91.823,91.776,2.0247047]
[1772711959428,3.85526632,91.823,91.781,2.02879129]
[1772711959621,3.82559862,91.839,91.781,2.02879129]
[1772711960523,3.82559862,91.839,91.791,9.804]
[1772711961726,4.17602429,91.85,91.806,2.01403303]
[1772711962025,3.82559862,91.849,91.806,2.01403303]
[1772711962220,3.82559862,91.849,91.791,2.01403303]
[1772711963121,3.82559862,91.847,91.797,9.803]
[1772711963326,3.82559862,91.839,91.791,2.01403303]
[1772711964726,3.82559862,91.839,91.793,9.804]
[1772711965632,3.82559862,91.819,91.774,2.0381285]
[1772711966539,3.82559862,91.819,91.775,9.806]
[1772711967231,3.82559862,91.819,91.782,11.83110093]
[1772711972727,3.7598068,91.833,91.787,2.02815788]
[1772711973529,3.7598068,91.831,91.784,9.805]
[1772711973732,4.17602429,91.8,91.76,13.57138137]
[1772711973931,4.17602429,91.8,91.757,2.02815788]
[1772711973932,3.7598068,91.799,91.757,2.02815788]
[1772711974233,3.7598068,91.797,91.757,2.02815788]
[1772711975435,3.7598068,91.797,91.761,9.807]
[1772711976134,3.7598068,91.797,91.757,2.02815788]
[1772711977738,3.7598068,91.797,91.753,9.808]
[1772711978939,9.20441687,91.808,91.761,2.02511868]
[1772711979139,3.7598068,91.815,91.771,2.02511868]
[1772711979340,3.7598068,91.829,91.771,2.02511868]
[1772711979740,3.7598068,91.829,91.782,2.02511868]
[1772711979930,9.8,91.831,91.782,2.02511868]
[1772711981438,9.8,91.831,91.78,4.17602429]
[1772711981439,9.8,91.831,91.786,2.07154011]
[1772711982340,3.7598068,91.819,91.777,9.805]
[1772711984340,3.7598068,91.818,91.771,2.06112123]
[1772711985142,3.7598068,91.809,91.76,6.21695591]
[1772711985736,4.17602429,91.8,91.76,2.04093162]
[1772711985938,3.7598068,91.809,91.76,2.04093162]
[1772711986237,3.7598068,91.809,91.76,6.21695591]
[1772711988443,3.7598068,91.809,91.76,16.02395591]
[1772711989045,3.7598068,91.809,91.762,9.807]
[1772711989242,3.95078857,91.827,91.781,1.98752786]
[1772711994947,3.95078857,91.827,91.788,1.98540624]
[1772711995347,3.95078857,91.827,91.779,9.805]
[1772711995547,3.95078857,91.827,91.759,20.3468578]
[1772711995548,3.95078857,91.819,91.766,13.56376412]
[1772711995846,3.95078857,91.819,91.767,1.98540624]
[1772711996443,3.95078857,91.818,91.771,9.806]
[1772711998542,3.95078857,91.818,91.774,1.97441691]
[1772711999444,3.95078857,91.818,91.776,1.97441691]
[1772712000346,3.95078857,91.831,91.78,1.97441691]
[1772712001154,3.95078857,91.831,91.788,1.97436208]
[1772712001353,3.95078857,91.841,91.791,1.97436208]
[1772712001854,3.95078857,91.841,91.792,1.97436208]
[1772712002050,3.95078857,91.841,91.8,4.17544458]
[1772712002754,3.95078857,91.841,91.8,6.15831783]
[1772712002956,3.95078857,91.841,91.801,1.98287325]
[1772712003348,3.95078857,91.841,91.802,9.803]
[1772712004552,3.95078857,91.841,91.801,1.98287325]
[1772712006454,13.12824527,91.858,91.802,2.04149104]
[1772712006657,3.95078857,91.858,91.811,2.04149104]
[1772712007252,3.95078857,91.858,91.816,2.04149104]
[1772712007757,3.95078857,91.849,91.801,2.04149104]
[1772712007962,3.95078857,91.829,91.784,2.04149104]
[1772712008653,3.95078857,91.819,91.77,2.03091207]
[1772712008851,3.95078857,91.809,91.77,2.03091207]
[1772712009353,3.95078857,91.789,91.742,2.03091207]
[1772712009664,3.95078857,91.789,91.735,13.56376412]
[1772712009957,3.95078857,91.789,91.743,9.809]
[1772712010163,4.17544458,91.81,91.761,2.03091207]
[1772712010354,3.95078857,91.829,91.78,4.17544458]
[1772712010560,3.95078857,91.844,91.791,2.00877448]
[1772712010760,3.95078857,91.859,91.81,4.17544458]
[1772712010962,3.95078857,91.859,91.811,2.00877448]
[1772712011760,3.95078857,91.859,91.82,4.17544458]
[1772712012155,3.95078857,91.849,91.8,4.17544458]
[1772712012562,3.95078857,91.849,91.797,2.00877448]
[1772712012762,4.17544458,91.84,91.797,2.00877448]
[1772712012963,3.95078857,91.829,91.78,4.17544458]
[1772712013261,3.95078857,91.829,91.771,1.95733675]
[1772712014258,3.95078857,91.819,91.771,1.95733675]
[1772712014662,4.17544458,91.83,91.771,1.95733675]
[1772712015270,3.95078857,91.83,91.79,4.17544458]
[1772712016268,3.95078857,91.83,91.792,9.804]
[1772712016470,3.95078857,91.83,91.79,4.17544458]
[1772712017174,3.95078857,91.829,91.783,9.805]
[1772712017370,3.95078857,91.829,91.781,1.74947885]
[1772712017772,3.95078857,91.829,91.782,9.805]
[1772712018370,3.95078857,91.829,91.786,11.56987643]
[1772712018673,3.95078857,91.829,91.79,4.17544458]
[1772712019276,3.95078857,91.829,91.778,9.805]
[1772712019477,3.95078857,91.829,91.78,4.17544458]
[1772712019677,3.95078857,91.829,91.778,9.805]
[1772712020074,3.93634708,91.849,91.8,4.17544458]
[1772712021881,3.93634708,91.849,91.802,9.803]
[1772712022374,3.93634708,91.847,91.79,5.93624232]
[1772712022579,3.93634708,91.839,91.78,4.17544458]
[1772712023075,3.93634708,91.839,91.79,4.17544458]
[1772712023579,3.93634708,91.837,91.79,4.17544458]
[1772712025379,3.93634708,91.837,91.791,9.804]
[1772712028976,3.93634708,91.837,91.754,20.3468578]
[1772712028977,3.73179229,91.819,91.771,1.8884236]
[1772712029177,3.73179229,91.833,91.79,4.17544458]
[1772712029480,3.73179229,91.853,91.801,1.88853096]
[1772712029678,3.73179229,91.853,91.81,4.17544458]
[1772712030282,3.73179229,91.852,91.81,4.17544458]
[1772712031372,9.798,91.851,91.81,4.17544458]
[1772712031573,13.52979229,91.851,91.81,4.17544458]
[1772712031777,3.73179229,91.85,91.81,4.17544458]
[1772712032379,3.73179229,91.85,91.811,9.802]
[1772712032678,3.73179229,91.85,91.81,4.17544458]
[1772712034082,3.73179229,91.85,91.81,13.97744458]
[1772712035075,3.73179229,91.85,91.81,9.802]
[1772712036278,3.73179229,91.85,91.801,1.88853096]
[1772712036587,3.73179229,91.849,91.802,9.803]
[1772712037086,4.17544458,91.86,91.811,1.90268608]
[1772712037286,3.73179229,91.863,91.811,1.90268608]
[1772712038086,9.797,91.858,91.815,9.801]
[1772712038286,9.797,91.858,91.816,1.90268608]
[1772712038884,4.17544458,91.86,91.816,1.90268608]
[1772712039285,3.73179229,91.849,91.796,1.91402274]
[1772712040487,3.73179229,91.849,91.801,9.803]
[1772712040682,3.73179229,91.849,91.801,1.90516013]
[1772712040882,3.73179229,91.869,91.811,1.90516013]
[1772712041188,3.73179229,91.869,91.822,9.801]
[1772712041789,3.73179229,91.869,91.822,11.70616013]
[1772712042588,3.73179229,91.859,91.822,9.801]
[1772712044387,9.15137924,91.878,91.836,9.799]
[1772712044582,3.73179229,91.886,91.837,1.88502012]
[1772712045485,3.73179229,91.886,91.846,9.798]
[1772712045893,3.73179229,91.879,91.846,9.798]
[1772712046085,3.73179229,91.879,91.839,9.799]
[1772712046289,3.73179229,91.879,91.8,19.606]
[1772712046290,3.73179229,91.869,91.82,4.17544458]
[1772712046590,3.73179229,91.869,91.821,1.77326511]
[1772712046786,3.73179229,91.869,91.839,9.799]
[1772712047691,3.73179229,91.869,91.821,1.77326511]
[1772712048286,3.73179229,91.869,91.83,9.8]
[1772712049489,4.17544458,91.88,91.844,9.798]
[1772712049688,9.1393105,91.902,91.844,9.798]
[1772712049689,4.17544458,91.89,91.844,1.75442473]
[1772712051392,4.17544458,91.89,91.857,9.797]
[1772712052390,4.17544458,91.89,91.844,1.75442473]
[1772712052391,3.86748288,91.889,91.844,1.75442473]
[1772712052695,4.17544458,91.86,91.811,1.73599387]
[1772712053389,4.17544458,91.86,91.791,13.56376412]
[1772712053390,3.86748288,91.859,91.791,13.56376412]
[1772712053591,4.17544458,91.83,91.785,1.73599387]
[1772712055289,4.17544458,91.82,91.77,1.73976015]
[1772712056097,3.86748288,91.819,91.77,1.73976015]
[1772712056398,3.86748288,91.819,91.776,9.805]
[1772712057693,3.86748288,91.809,91.776,9.805]
[1772712059299,3.86748288,91.823,91.783,9.805]
[1772712060601,4.17613412,91.81,91.774,9.806]
[1772712060800,10.08484617,91.882,91.781,3.6817099]
[1772712061100,4.17613412,91.84,91.791,3.6817099]
[1772712061601,4.17613412,91.84,91.794,9.804]
[1772712061894,4.17613412,91.82,91.774,3.6817099]
[1772712062099,4.17613412,91.81,91.756,3.6817099]
[1772712062401,4.17613412,91.79,91.742,3.6817099]
[1772712063303,4.17613412,91.8,91.757,3.6817099]
[1772712063899,4.17613412,91.79,91.749,9.808]
[1772712064201,3.86748288,91.8,91.749,9.808]
[1772712064400,4.17613412,91.79,91.749,9.808]
[1772712066500,3.86748288,91.799,91.749,9.808]
[1772712067506,3.86748288,91.799,91.76,4.17613412]
[1772712067805,3.86748288,91.799,91.751,3.6817099]
[1772712068400,3.86748288,91.799,91.751,13.4897099]
[1772712068607,4.17613412,91.79,91.74,4.17613412]
[1772712068808,4.17613412,91.79,91.749,9.808]
[1772712069403,3.86748288,91.799,91.751,9.808]
[1772712069603,4.17613412,91.79,91.751,9.808]
[1772712070009,3.86748288,91.799,91.751,9.808]
[1772712071409,3.86748288,91.799,91.758,9.807]
[1772712071809,8.043617,91.81,91.76,4.17613412]
[1772712072008,3.86748288,91.809,91.76,4.17613412]
[1772712072612,3.86748288,91.799,91.751,3.6817099]
[1772712073515,3.86748288,91.799,91.761,9.807]
[1772712076008,3.86748288,91.799,91.717,13.56376412]
[1772712076009,4.17613412,91.81,91.771,9.806]
[1772712076212,3.86748288,91.815,91.771,9.806]
[1772712076408,3.86748288,91.815,91.77,4.17613412]
[1772712077007,3.86748288,91.812,91.76,4.17613412]
[1772712077319,3.86748288,91.799,91.752,3.6817099]
[1772712077514,3.86748288,91.799,91.741,3.6817099]
[1772712078318,4.17613412,91.79,91.754,9.808]
[1772712078616,3.86748288,91.799,91.754,9.808]
[1772712079018,3.89610472,91.796,91.746,9.809]
[1772712079715,3.89610472,91.789,91.741,3.6817099]
[1772712080920,4.17613412,91.77,91.728,9.811]
[1772712081411,3.89610472,91.779,91.735,9.81]
[1772712082622,3.89610472,91.793,91.741,3.60455703]
[1772712083013,3.89610472,91.793,91.743,13.41355703]
[1772712083213,3.89610472,91.789,91.734,3.60455703]
[1772712083418,9.04674449,91.834,91.734,3.60455703]
[1772712083419,3.89610472,91.779,91.734,3.60455703]
[1772712084018,4.17613412,91.79,91.741,3.60455703]
[1772712084521,3.89610472,91.788,91.741,3.60455703]
[1772712084718,3.89610472,91.788,91.73,4.17613412]
[1772712084920,8.07223884,91.78,91.73,4.17613412]
[1772712085119,3.89610472,91.78,91.731,3.60455703]
[1772712085728,3.89610472,91.78,91.741,9.809]
[1772712087426,4.17613412,91.77,91.72,4.17613412]
[1772712087628,8.07223884,91.77,91.72,4.17613412]
[1772712088027,3.89610472,91.77,91.72,4.17613412]
[1772712088325,3.89610472,91.77,91.72,7.92007332]
[1772712088531,13.70210472,91.77,91.725,9.811]
[1772712089426,13.70210472,91.77,91.72,7.92007332]
[1772712089427,3.89610472,91.77,91.731,9.81]
[1772712089628,9.805,91.777,91.731,9.81]
[1772712090322,4.17613412,91.78,91.731,9.81]
[1772712090521,3.60889411,91.779,91.724,3.7439392]
[1772712090726,4.17613412,91.77,91.724,3.7439392]
[1772712091126,4.17613412,91.77,91.666,20.3468578]
[1772712091127,3.60889411,91.799,91.75,7.92007332]
[1772712091625,13.41189411,91.799,91.75,7.92007332]
[1772712091932,3.60889411,91.798,91.75,13.5519392]
[1772712092131,9.803,91.795,91.75,13.5519392]
[1772712092529,4.17613412,91.79,91.75,13.5519392]
[1772712093430,3.60889411,91.794,91.75,13.5519392]
[1772712093431,9.804,91.793,91.75,13.5519392]
[1772712093733,4.17613412,91.79,91.75,13.5519392]
[1772712094427,4.17613412,91.79,91.75,3.7439392]
[1772712096333,3.60889411,91.788,91.74,4.17613412]
[1772712096534,3.60889411,91.788,91.741,3.7439392]
[1772712097635,9.804,91.786,91.741,3.7439392]
[1772712098634,9.804,91.786,91.751,3.7439392]
[1772712100231,9.804,91.786,91.705,20.3468578]
[1772712100232,3.60889411,91.813,91.76,4.17613412]
[1772712100434,20.11323939,91.86,91.691,152.678]
[1772712100435,3.60889411,91.84,91.79,4.17613412]
[1772712100736,20.11323939,91.898,91.711,152.645]
[1772712100737,3.60889411,91.859,91.82,4.17613412]
[1772712100937,3.60889411,91.883,91.84,4.17613412]
[1772712101834,3.60889411,91.883,91.83,3.7439392]
[1772712101835,9.796,91.867,91.83,3.7439392]
[1772712102027,9.796,91.867,91.82,4.17613412]
[1772712102434,3.60889411,91.883,91.812,3.7439392]
[1772712102630,3.60889411,91.879,91.812,3.7439392]
[1772712103839,3.60889411,91.868,91.795,3.7439392]
[1772712104342,3.60889411,91.868,91.797,3.7439392]
[1772712105438,3.60889411,91.865,91.787,9.804]
[1772712105735,3.60889411,91.839,91.761,3.7439392]
[1772712105941,3.60889411,91.832,91.772,9.806]
[1772712107240,3.60889411,91.83,91.772,9.806]
[1772712107943,3.60889411,91.83,91.761,3.7439392]
[1772712110043,3.77855705,91.827,91.761,3.7439392]
[1772712110243,3.77855705,91.827,91.764,3.92382471]
[1772712110945,8.93780637,91.84,91.764,3.92382471]
[1772712111146,9.8,91.829,91.766,3.92382471]
[1772712112545,3.77855705,91.839,91.768,3.92382471]
[1772712112945,3.77855705,91.839,91.771,3.92382471]
[1772712113751,3.77855705,91.837,91.771,3.92382471]
[1772712114644,3.77855705,91.834,91.774,9.806]
[1772712114851,3.77855705,91.834,91.775,3.92382471]
[1772712115444,3.77855705,91.834,91.778,3.92382471]
[1772712116041,3.77855705,91.834,91.781,9.805]
[1772712116846,3.77855705,91.834,91.786,9.804]
[1772712117446,3.77855705,91.834,91.794,9.804]
[1772712117647,3.77855705,91.834,91.782,3.92382471]
[1772712118048,3.77855705,91.832,91.786,9.804]
[1772712119045,13.57855705,91.83,91.782,3.92382471]
[1772712119246,3.77855705,91.829,91.782,3.92382471]
[1772712120347,3.77855705,91.849,91.782,3.92382471]
[1772712120752,3.77855705,91.831,91.75,8.94717622]
[1772712120948,3.77855705,91.829,91.751,3.92382471]
[1772712121654,9.802,91.812,91.751,3.92382471]
[1772712122246,9.801,91.821,91.754,3.92382471]
[1772712122643,3.77855705,91.829,91.754,3.92382471]
[1772712123743,9.802,91.807,91.754,3.92382471]
[1772712125047,9.802,91.807,91.761,3.92382471]
[1772712125948,9.803,91.801,91.761,3.92382471]
[1772712126946,9.803,91.801,91.77,4.17691695]
[1772712127152,9.803,91.801,91.771,3.92382471]
[1772712127552,9.804,91.795,91.751,3.92382471]
[1772712127751,9.804,91.795,91.731,13.56376412]
[1772712127752,9.804,91.795,91.761,3.92382471]
[1772712128445,9.804,91.787,91.75,4.17691695]
[1772712128650,4.17691695,91.8,91.746,3.92382471]
[1772712128651,3.77855705,91.799,91.746,3.92382471]
[1772712129844,3.77855705,91.798,91.746,3.92382471]
[1772712130053,3.77855705,91.789,91.746,3.92382471]
[1772712130550,9.802,91.807,91.751,3.92382471]
[1772712130946,13.58055705,91.807,91.751,3.92382471]
[1772712131152,3.77855705,91.806,91.751,3.92382471]
[1772712133054,3.77855705,91.806,91.754,13.73182471]
[1772712133752,3.77855705,91.806,91.757,3.92382471]
[1772712134956,3.77855705,91.806,91.759,9.807]
[1772712136354,3.77855705,91.806,91.713,20.3468578]
[1772712136355,4.17691695,91.78,91.72,4.17691695]
[1772712136657,3.77855705,91.779,91.721,3.92382471]
[1772712137357,3.77855705,91.779,91.743,9.809]
[1772712137559,3.77855705,91.779,91.721,3.92382471]
[1772712139752,3.77855705,91.779,91.731,3.64299402]
[1772712140261,3.77855705,91.779,91.659,19.636]
[1772712140262,9.805,91.785,91.741,3.64299402]
[1772712141257,4.17691695,91.79,91.741,3.64299402]
[1772712141258,9.805,91.782,91.741,3.64299402]
[1772712142455,3.69960361,91.784,91.741,3.64299402]
[1772712142660,4.17691695,91.78,91.741,3.64299402]
[1772712143054,7.87652056,91.78,91.73,4.17691695]
[1772712143259,3.69960361,91.779,91.726,3.64299402]
[1772712144559,3.69960361,91.779,91.711,9.812]
[1772712144560,3.69960361,91.779,91.731,3.64299402]
[1772712146459,3.69960361,91.769,91.72,4.17691695]
[1772712146654,3.69960361,91.769,91.721,3.64299402]
[1772712152161,3.69960361,91.769,91.724,9.811]
[1772712152561,9.805,91.78,91.724,9.811]
[1772712152562,3.91973926,91.759,91.724,9.811]
[1772712154966,3.91973926,91.739,91.689,3.70441521]
[1772712155767,3.91973926,91.729,91.681,3.70441521]
[1772712156462,3.91973926,91.719,91.67,4.17691695]
[1772712156667,3.91973926,91.699,91.636,3.70441521]
[1772712156868,3.91973926,91.689,91.636,3.70441521]
[1772712157072,3.91973926,91.689,91.64,7.88133216]
[1772712157272,3.91973926,91.689,91.641,3.70441521]
[1772712158465,3.91973926,91.689,91.633,9.821]
[1772712158666,4.17691695,91.68,91.634,3.70441521]
[1772712158869,3.91973926,91.679,91.622,9.822]
[1772712159073,4.17691695,91.67,91.623,3.70441521]
[1772712159470,3.91973926,91.669,91.572,3.70441521]
[1772712159777,10.08484617,91.729,91.571,3.70441521]
[1772712159778,4.17691695,91.62,91.571,3.70441521]
[1772712159968,3.91973926,91.619,91.519,3.70441521]
[1772712160271,3.91973926,91.619,91.472,153.044]
[1772712160272,4.17691695,91.59,91.542,3.70441521]
[1772712160475,3.91973926,91.587,91.491,3.70441521]
[1772712160671,3.91973926,91.587,91.451,20.3468578]
[1772712160672,3.91973926,91.571,91.499,3.70441521]
[1772712160874,152.808,91.614,91.464,3.70441521]
[1772712160875,3.91973926,91.539,91.464,3.70441521]
[1772712161274,3.91973926,91.539,91.466,3.70441521]
[1772712161478,3.91973926,91.569,91.481,3.70441521]
[1772712161774,13.74773926,91.569,91.482,9.837]
[1772712161973,3.91973926,91.568,91.481,3.70441521]
[1772712162177,3.91973926,91.549,91.461,3.70441521]
[1772712162373,3.91973926,91.529,91.461,3.70441521]
[1772712163676,3.91973926,91.549,91.467,3.70441521]
[1772712165077,3.91973926,91.548,91.441,3.70441521]
[1772712165277,3.91973926,91.529,91.441,3.70441521]
[1772712166482,3.91973926,91.526,91.441,3.70441521]
[1772712169979,3.72799805,91.519,91.441,3.70441521]
[1772712170776,3.72799805,91.544,91.441,3.70441521]
[1772712171578,3.72799805,91.537,91.443,3.92090789]
[1772712171779,3.72799805,91.529,91.443,3.92090789]
[1772712173082,8.99839317,91.51,91.421,3.92090789]
[1772712173384,3.72799805,91.509,91.421,3.92090789]
[1772712173992,8.99839317,91.55,91.42,14.78274883]
[1772712173993,3.72799805,91.489,91.42,14.78274883]
[1772712174284,3.72799805,91.489,91.421,3.92090789]
[1772712176889,3.72799805,91.489,91.42,14.78274883]
[1772712178392,3.72799805,91.489,91.422,3.92090789]
[1772712178590,3.72799805,91.489,91.42,14.78274883]
[1772712178792,3.72799805,91.469,91.42,14.78274883]
[1772712179792,3.72799805,91.494,91.421,3.92090789]
[1772712179988,3.72799805,91.494,91.431,9.842]
[1772712180182,9.01791582,91.51,91.43,9.01791582]
[1772712180484,3.72799805,91.513,91.46,9.839]
[1772712180688,3.72799805,91.513,91.46,13.75990789]
[1772712180893,3.72799805,91.532,91.46,3.92090789]
[1772712181088,3.72799805,91.551,91.471,3.92090789]
[1772712181288,3.72799805,91.57,91.491,3.92090789]
[1772712181891,3.72799805,91.57,91.512,3.92090789]
[1772712182284,3.72799805,91.609,91.512,3.92090789]
[1772712182496,3.72799805,91.588,91.512,3.92090789]
[1772712182993,9.826,91.587,91.512,3.92090789]
[1772712183190,13.55399805,91.587,91.512,3.92090789]
[1772712183796,3.72799805,91.586,91.512,3.92090789]
[1772712184397,9.826,91.583,91.512,3.92090789]
[1772712184997,3.72799805,91.586,91.512,3.92090789]
[1772712185805,3.72799805,91.584,91.512,3.92090789]
[1772712186316,3.72799805,91.548,91.49,3.92090789]
[1772712186606,3.72799805,91.569,91.49,3.92090789]
[1772712187404,3.72799805,91.564,91.49,3.92090789]
[1772712188906,3.72799805,91.564,91.471,3.92090789]
[1772712189608,3.72799805,91.547,91.471,3.92090789]
[1772712190010,9.833,91.521,91.444,3.92090789]
[1772712190206,3.72799805,91.52,91.444,3.92090789]
[1772712190599,3.72799805,91.517,91.444,3.92090789]
[1772712190799,3.72799805,91.509,91.421,3.92090789]
[1772712191000,3.72799805,91.489,91.401,3.92090789]
[1772712191199,3.72799805,91.469,91.42,12.14518293]
[1772712191507,13.56799805,91.456,91.42,12.14518293]
[1772712191707,3.72799805,91.456,91.42,12.14518293]
[1772712191903,9.84,91.455,91.42,0.00018293]
[1772712192099,3.72799805,91.456,91.42,0.00018293]
[1772712193000,9.84,91.454,91.42,0.00018293]
[1772712193903,9.839,91.464,91.42,0.00018293]
[1772712194210,3.72799805,91.463,91.42,0.00018293]
[1772712195110,3.72799805,91.489,91.42,0.00018293]
[1772712195805,9.01791582,91.49,91.363,3.92090789]
[1772712195806,3.72799805,91.458,91.363,3.92090789]
[1772712196211,3.72799805,91.439,91.363,3.92090789]
[1772712197411,9.844,91.419,91.363,3.92090789]
[1772712198413,9.845,91.409,91.363,3.92090789]